fUSD/lending_fUSD_20241119
["ID","MTS","AMOUNT","RATE_DAILY","PERIOD"]
[342652784,1732025446445,-1401.39,9.999e-05,2]
[342652785,1732025446455,-1401.39,9.999e-05,2]
[342652786,1732025446464,-1401.39,9.999e-05,2]
[342652787,1732025446474,-1401.39,9.999e-05,2]
[342652788,1732025446483,-1401.39,9.999e-05,2]
[342652789,1732025446492,-1401.39,9.999e-05,2]
[342652790,1732025446501,-1401.39,9.999e-05,2]
[342652792,1732025446511,-1401.39,9.999e-05,2]
[342652794,1732025446520,-1401.39,9.999e-05,2]
[342652796,1732025446529,-1401.39,9.999e-05,2]
[342652798,1732025446543,-1401.39,9.999e-05,2]
[342652801,1732025446555,-1401.39,9.999e-05,2]
[342652803,1732025446565,-1401.39,9.999e-05,2]
[342652805,1732025446575,-1401.39,9.999e-05,2]
[342652807,1732025446587,-1401.39,9.999e-05,2]
[342652808,1732025446596,-1401.39,9.999e-05,2]
[342652811,1732025446606,-1401.39,9.999e-05,2]
[342652812,1732025446615,-1401.52,9.999e-05,2]
[342652814,1732025446624,-500.0,9.999e-05,2]
[342652816,1732025446634,-500.0,9.999e-05,2]
[342652818,1732025446643,-500.0,9.999e-05,2]
[342652820,1732025446654,-500.0,9.999e-05,2]
[342652822,1732025446663,-500.0,9.999e-05,2]
[342652825,1732025446673,-500.0,9.999e-05,2]
[342652827,1732025446683,-500.0,9.999e-05,2]
[342652829,1732025446693,-500.0,9.999e-05,2]
[342652831,1732025446702,-500.0,9.999e-05,2]
[342652833,1732025446711,-506.98321678,9.999e-05,2]
[342652835,1732025446721,-2261.81944286,9.999e-05,2]
[342652837,1732025446731,-500.0,9.999e-05,2]
[342652839,1732025446740,-500.0,9.999e-05,2]
[342652841,1732025446749,-500.0,9.999e-05,2]
[342652843,1732025446758,-500.0,9.999e-05,2]
[342652845,1732025446768,-500.0,9.999e-05,2]
[342652847,1732025446777,-500.0,9.999e-05,2]
[342652849,1732025446787,-500.0,9.999e-05,2]
[342652851,1732025446796,-500.0,9.999e-05,2]
[342652853,1732025446808,-500.0,9.999e-05,2]
[342652855,1732025446818,-500.0,9.999e-05,2]
[342652857,1732025446827,-500.0,9.999e-05,2]
[342652859,1732025446837,-500.0,9.999e-05,2]
[342652861,1732025446846,-500.0,9.999e-05,2]
[342652863,1732025446856,-500.0,9.999e-05,2]
[342652865,1732025446865,-500.0,9.999e-05,2]
[342652867,1732025446874,-190.77335395,9.999e-05,2]
[342652869,1732025446883,-500.0,9.999e-05,2]
[342652871,1732025446893,-500.0,9.999e-05,2]
[342652873,1732025446902,-500.0,9.999e-05,2]
[342652875,1732025446911,-500.0,9.999e-05,2]
[342652877,1732025446921,-500.0,9.999e-05,2]
[342652879,1732025446931,-500.0,9.999e-05,2]
[342652881,1732025446941,-500.0,9.999e-05,2]
[342652883,1732025446951,-500.0,9.999e-05,2]
[342652885,1732025446961,-889.05,9.999e-05,2]
[342652887,1732025446971,-889.05,9.999e-05,2]
[342652890,1732025446980,-889.05,9.999e-05,2]
[342652892,1732025446990,-889.05,9.999e-05,2]
[342652893,1732025446999,-889.05,9.999e-05,2]
[342652896,1732025447009,-889.05,9.999e-05,2]
[342652898,1732025447018,-889.05,9.999e-05,2]
[342652900,1732025447027,-889.05,9.999e-05,2]
[342652901,1732025447036,-889.05,9.999e-05,2]
[342652904,1732025447046,-889.05,9.999e-05,2]
[342652906,1732025447059,-889.05,9.999e-05,2]
[342652908,1732025447069,-889.05,9.999e-05,2]
[342652909,1732025447078,-889.05,9.999e-05,2]
[342652912,1732025447087,-889.05,9.999e-05,2]
[342652913,1732025447097,-889.05,9.999e-05,2]
[342652915,1732025447106,-889.05,9.999e-05,2]
[342652917,1732025447115,-889.05,9.999e-05,2]
[342652920,1732025447125,-889.05,9.999e-05,2]
[342652922,1732025447134,-889.05,9.999e-05,2]
[342652924,1732025447144,-889.20003912,9.999e-05,2]
[342652926,1732025447153,-153.60343081,9.999e-05,2]
[342652928,1732025447163,-500.0,9.999e-05,2]
[342652929,1732025447173,-727.35,9.999e-05,2]
[342652932,1732025447183,-727.35,9.999e-05,2]
[342652933,1732025447193,-727.35,9.999e-05,2]
[342652936,1732025447203,-727.35,9.999e-05,2]
[342652938,1732025447213,-727.35,9.999e-05,2]
[342652939,1732025447222,-727.35,9.999e-05,2]
[342652941,1732025447232,-727.35,9.999e-05,2]
[342652944,1732025447241,-727.35,9.999e-05,2]
[342652946,1732025447251,-727.35,9.999e-05,2]
[342652947,1732025447260,-727.35,9.999e-05,2]
[342652949,1732025447269,-727.35,9.999e-05,2]
[342652951,1732025447278,-727.35,9.999e-05,2]
[342652954,1732025447288,-727.35,9.999e-05,2]
[342652956,1732025447297,-727.35,9.999e-05,2]
[342652957,1732025447308,-727.35,9.999e-05,2]
[342652959,1732025447318,-500.0,9.999e-05,2]
[342652962,1732025447327,-727.35,9.999e-05,2]
[342652964,1732025447336,-727.35,9.999e-05,2]
[342652966,1732025447345,-727.35,9.999e-05,2]
[342652968,1732025447356,-727.57318966,9.999e-05,2]
[342652969,1732025447365,-500.0,9.999e-05,2]
[342652972,1732025447374,-500.0,9.999e-05,2]
[342652974,1732025447383,-500.0,9.999e-05,2]
[342652976,1732025447393,-500.0,9.999e-05,2]
[342652978,1732025447403,-500.0,9.999e-05,2]
[342652980,1732025447413,-500.0,9.999e-05,2]
[342652981,1732025447422,-500.0,9.999e-05,2]
[342652983,1732025447431,-365.17,9.999e-05,2]
[342652985,1732025447440,-500.0,9.999e-05,2]
[342652987,1732025447449,-500.0,9.999e-05,2]
[342652989,1732025447458,-553.92,9.999e-05,2]
[342652991,1732025447467,-150.0,9.999e-05,2]
[342652993,1732025447476,-500.0,9.999e-05,2]
[342652995,1732025447485,-500.0,9.999e-05,2]
[342652997,1732025447494,-500.0,9.999e-05,2]
[342652999,1732025447503,-500.0,9.999e-05,2]
[342653001,1732025447513,-500.0,9.999e-05,2]
[342653003,1732025447522,-500.0,9.999e-05,2]
[342653005,1732025447531,-412.82528291,9.999e-05,2]
[342653007,1732025447540,-308.37053465,9.999e-05,2]
[342653009,1732025447549,-9520.96210001,0.0001,2]
[342653011,1732025447563,-503301.9646086,0.0001,2]
[342653013,1732025447579,-224044.20759732,0.0001,2]
[342653038,1732025447894,-430085.60843924,0.0001,2]
[342653040,1732025447906,-37758.49899996,0.0001,2]
[342653055,1732025448036,-515.28705452,0.0001,2]
[342653057,1732025448047,-766.34341095,0.0001,2]
[342653059,1732025448064,-484.43905378,0.0001,2]
[342653060,1732025448075,-1161.33385631,0.0001,2]
[342653061,1732025448090,-18096612.2771226,0.0001,2]
[342653062,1732025448102,-443871.91220506,0.0001,2]
[342653063,1732025448113,-2969.56659853,0.0001,2]
[342653064,1732025448124,-722.46000004,0.0001,2]
[342653065,1732025448136,-326.45,0.0001,2]
[342653066,1732025448147,-7910.23972605,0.0001,2]
[342653067,1732025448196,-132588.52430592,0.0001,2]
[342653068,1732025448207,-11766.61353186,0.0001,2]
[342653069,1732025448222,-1208.59440585,0.0001,2]
[342653070,1732025448233,-964.35546878,0.0001,2]
[342653072,1732025448245,-281.186742,0.0001,2]
[342653074,1732025448256,-910.56884489,0.0001,2]
[342653077,1732025448271,-8225.21700001,0.0001,2]
[342653079,1732025448282,-432.90000012,0.0001,2]
[342653081,1732025448295,-5663.00549854,0.0001,2]
[342653084,1732025448310,-683.2,0.0001,2]
[342653086,1732025448322,-101676.08214189,0.0001,2]
[342653088,1732025448334,-372.38190116,0.0001,2]
[342653105,1732025448491,-500.0,9.863e-05,2]
[342653107,1732025448500,-500.0,9.863e-05,2]
[342653109,1732025448509,-500.0,9.989e-05,2]
[342653111,1732025448519,-500.0,9.998e-05,2]
[342653113,1732025448528,-500.0,9.999e-05,2]
[342653115,1732025448538,-330.58393329,9.999e-05,2]
[342653117,1732025448548,-38884.58225655,0.0001,2]
[342653119,1732025448564,-5900.76437714,0.0001,2]
[342653122,1732025448577,-707.3898016,0.0001,2]
[342653125,1732025448598,-21690.96619575,0.0001,2]
[342653127,1732025448630,-2960.32444672,0.0001,2]
[342653128,1732025448641,-9182.829,0.0001,2]
[342653129,1732025448653,-447.3484677,0.0001,2]
[342653130,1732025448666,-2464.38848363,0.0001,2]
[342653131,1732025448677,-720.178,0.0001,2]
[342653132,1732025448689,-1777.30576169,0.0001,2]
[342653133,1732025448700,-10858.15889769,0.0001,2]
[342653134,1732025448712,-2568.988725,0.0001,2]
[342653136,1732025448723,-2897.27675943,0.0001,2]
[342653139,1732025448735,-3000.39999877,0.0001,2]
[342653141,1732025448747,-1707.05534949,0.0001,2]
[342653143,1732025448758,-14736.31873105,0.0001,2]
[342653145,1732025448774,-715304.04611493,0.0001,2]
[342653153,1732025448852,-8785.4004,9.502e-05,2]
[342653155,1732025448861,-575.35,9.863e-05,2]
[342653157,1732025448872,-29001.81658357,0.0001,2]
[342653160,1732025448883,-56704.22390302,0.0001,2]
[342653162,1732025448895,-45621.89093745,0.0001,2]
[342653164,1732025448907,-530641.41409012,0.0001,2]
[342653166,1732025448919,-6211.31948866,0.0001,2]
[342653168,1732025448930,-5404.4355,0.0001,2]
[342653170,1732025448941,-1093.73990138,0.0001,2]
[342653173,1732025448953,-924809.99203211,0.0001,2]
[342653175,1732025448964,-5478.3268,0.0001,2]
[342653177,1732025448976,-15812.62271076,0.0001,2]
[342653179,1732025448991,-309150.00000168,0.0001,2]
[342653182,1732025449011,-500.0,9.863e-05,2]
[342653184,1732025449021,-90885.81475595,0.0001,2]
[342653186,1732025449032,-1606.05024046,0.0001,2]
[342653188,1732025449043,-26969.72952599,0.0001,2]
[342653191,1732025449054,-1824.04222,0.0001,2]
[342653259,1732026197737,150.0,8.219e-05,2]
[342653260,1732026197762,150.0,8.219e-05,2]
[342653261,1732026197786,150.0,8.219e-05,2]
[342653262,1732026197813,150.0,8.219e-05,2]
[342653263,1732026197845,150.0,8.219e-05,2]
[342653264,1732026197870,150.0,8.219e-05,2]
[342653265,1732026197898,150.0,8.219e-05,2]
[342653266,1732026197923,98.04,8.219e-05,2]
[342653270,1732026356084,150.0,6.94e-05,2]
[342653271,1732026356106,150.0,6.94e-05,2]
[342653272,1732026356127,150.0,6.94e-05,2]
[342653273,1732026356147,150.0,6.94e-05,2]
[342653274,1732026356168,150.0,6.94e-05,2]
[342653275,1732026356189,150.0,6.94e-05,2]
[342653276,1732026356210,150.0,6.94e-05,2]
[342653277,1732026356234,29098.7805876,6.94e-05,2]
[342653307,1732026632233,-250.0,8.829e-05,2]
[342653308,1732026632242,-164.9,8.849e-05,2]
[342653309,1732026632251,-156.62115498,8.93e-05,2]
[342653310,1732026632263,-93.37884502,8.93e-05,2]
[342653311,1732026632272,-413.87794644,8.931e-05,2]
[342653313,1732026632361,-586.12205356,8.931e-05,2]
[342653314,1732026632375,-250.0,8.931e-05,2]
[342653315,1732026632387,-190.08,8.948e-05,2]
[342653316,1732026632397,-300.0,8.999e-05,2]
[342653317,1732026632407,-150.0,8.999e-05,2]
[342653318,1732026632416,-16672.07112145,9e-05,2]
[342653319,1732026632433,-320.25724888,9e-05,2]
[342653320,1732026632529,-2448.0434397,9e-05,2]
[342653321,1732026632664,-1158.99595871,9e-05,2]
[342653331,1732026638214,-9491.33876996,9e-05,2]
[342653332,1732026638224,-23900.0,9.001e-05,2]
[342653333,1732026638234,-921.9,9.187e-05,2]
[342653334,1732026638243,-3656.57952154,9.336e-05,2]
[342653335,1732026638252,-1000.0,9.502e-05,2]
[342653336,1732026638261,-35212.9361,9.502e-05,2]
[342653337,1732026638270,-10897.1742,9.502e-05,2]
[342653338,1732026638279,-65957.0,9.587e-05,2]
[342653339,1732026638288,-400.0,9.6e-05,2]
[342653340,1732026638296,-1000.0,9.602e-05,2]
[342653341,1732026638305,-2500.0,9.602e-05,2]
[342653342,1732026638314,-150.99,9.67e-05,2]
[342653343,1732026638323,-50587.362,9.702e-05,2]
[342653344,1732026638332,-150.0,9.725e-05,2]
[342653345,1732026638341,-1535.17,9.8e-05,2]
[342653346,1732026638350,-433.37,9.804e-05,2]
[342653347,1732026638359,-433.37,9.804e-05,2]
[342653348,1732026638369,-433.37,9.804e-05,2]
[342653349,1732026638378,-433.37,9.804e-05,2]
[342653350,1732026638387,-215.509527,9.863e-05,2]
[342653351,1732026638396,-501.4231885,9.863e-05,2]
[342653352,1732026638405,-500.0,9.863e-05,2]
[342653353,1732026638415,-500.0,9.863e-05,2]
[342653354,1732026638424,-500.0,9.863e-05,2]
[342653355,1732026638433,-500.0,9.863e-05,2]
[342653356,1732026638443,-500.0,9.863e-05,2]
[342653357,1732026638454,-443.83,9.863e-05,2]
[342653358,1732026638464,-500.0,9.863e-05,2]
[342653359,1732026638474,-500.0,9.863e-05,2]
[342653360,1732026638483,-500.0,9.863e-05,2]
[342653361,1732026638492,-500.0,9.863e-05,2]
[342653362,1732026638501,-500.0,9.863e-05,2]
[342653363,1732026638510,-500.0,9.863e-05,2]
[342653364,1732026638520,-500.0,9.863e-05,2]
[342653365,1732026638529,-500.0,9.863e-05,2]
[342653366,1732026638538,-500.0,9.863e-05,2]
[342653367,1732026638547,-500.0,9.863e-05,2]
[342653368,1732026638556,-500.0,9.863e-05,2]
[342653369,1732026638565,-500.0,9.863e-05,2]
[342653370,1732026638574,-500.0,9.873e-05,2]
[342653371,1732026638584,-250.0,9.89e-05,2]
[342653372,1732026638594,-500.0,9.897e-05,2]
[342653373,1732026638603,-172.71003502,9.897e-05,2]
[342653374,1732026638612,-1896.24,9.897e-05,2]
[342653375,1732026638621,-500.0,9.897e-05,2]
[342653376,1732026638630,-500.0,9.897e-05,2]
[342653377,1732026638639,-500.0,9.897e-05,2]
[342653379,1732026638648,-500.0,9.897e-05,2]
[342653380,1732026638657,-500.0,9.897e-05,2]
[342653381,1732026638667,-500.0,9.897e-05,2]
[342653382,1732026638676,-500.0,9.897e-05,2]
[342653383,1732026638685,-500.0,9.897e-05,2]
[342653385,1732026638694,-500.0,9.897e-05,2]
[342653386,1732026638706,-500.0,9.897e-05,2]
[342653387,1732026638716,-500.0,9.897e-05,2]
[342653388,1732026638725,-500.0,9.897e-05,2]
[342653390,1732026638735,-500.0,9.897e-05,2]
[342653392,1732026638744,-500.0,9.897e-05,2]
[342653394,1732026638754,-500.0,9.897e-05,2]
[342653396,1732026638763,-500.0,9.897e-05,2]
[342653398,1732026638772,-500.0,9.897e-05,2]
[342653400,1732026638782,-754.38328563,9.898e-05,2]
[342653402,1732026638791,-224.40744954,9.898e-05,2]
[342653404,1732026638800,-500.0,9.898e-05,2]
[342653406,1732026638809,-500.0,9.898e-05,2]
[342653408,1732026638818,-500.0,9.898e-05,2]
[342653410,1732026638827,-500.0,9.898e-05,2]
[342653412,1732026638836,-500.0,9.898e-05,2]
[342653414,1732026638846,-500.0,9.898e-05,2]
[342653416,1732026638855,-500.0,9.898e-05,2]
[342653418,1732026638864,-500.0,9.898e-05,2]
[342653420,1732026638873,-500.0,9.898e-05,2]
[342653421,1732026638882,-500.0,9.898e-05,2]
[342653423,1732026638891,-150.0,9.898e-05,2]
[342653425,1732026638900,-648.56114925,9.898e-05,2]
[342653427,1732026638909,-500.0,9.898e-05,2]
[342653429,1732026638918,-500.0,9.898e-05,2]
[342653431,1732026638927,-500.0,9.898e-05,2]
[342653433,1732026638936,-500.0,9.898e-05,2]
[342653435,1732026638949,-500.0,9.898e-05,2]
[342653437,1732026638959,-500.0,9.898e-05,2]
[342653439,1732026638968,-500.0,9.898e-05,2]
[342653441,1732026638977,-500.0,9.898e-05,2]
[342653443,1732026638987,-401.62,9.898e-05,2]
[342653445,1732026638996,-500.0,9.898e-05,2]
[342653447,1732026639005,-500.0,9.898e-05,2]
[342653449,1732026639014,-500.0,9.898e-05,2]
[342653451,1732026639026,-500.0,9.898e-05,2]
[342653453,1732026639036,-501.3433888,9.898e-05,2]
[342653455,1732026639045,-500.0,9.898e-05,2]
[342653457,1732026639054,-500.0,9.898e-05,2]
[342653459,1732026639063,-500.0,9.898e-05,2]
[342653461,1732026639072,-500.0,9.898e-05,2]
[342653463,1732026639082,-500.0,9.898e-05,2]
[342653465,1732026639091,-500.0,9.898e-05,2]
[342653467,1732026639100,-1000.0,9.898e-05,2]
[342653469,1732026639109,-500.0,9.898e-05,2]
[342653471,1732026639118,-500.0,9.898e-05,2]
[342653473,1732026639130,-500.0,9.898e-05,2]
[342653475,1732026639139,-500.0,9.898e-05,2]
[342653477,1732026639147,-500.0,9.898e-05,2]
[342653479,1732026639156,-500.0,9.898e-05,2]
[342653481,1732026639165,-178.30272084,9.898e-05,2]
[342653483,1732026639175,-500.0,9.898e-05,2]
[342653485,1732026639183,-500.0,9.898e-05,2]
[342653487,1732026639192,-500.0,9.898e-05,2]
[342653489,1732026639203,-500.0,9.898e-05,2]
[342653491,1732026639212,-500.0,9.898e-05,2]
[342653493,1732026639221,-368.74,9.898e-05,2]
[342653495,1732026639231,-500.0,9.898e-05,2]
[342653497,1732026639239,-500.0,9.898e-05,2]
[342653499,1732026639248,-500.0,9.898e-05,2]
[342653501,1732026639258,-500.0,9.898e-05,2]
[342653503,1732026639270,-500.0,9.898e-05,2]
[342653505,1732026639279,-500.0,9.898e-05,2]
[342653507,1732026639287,-500.0,9.898e-05,2]
[342653509,1732026639296,-500.0,9.898e-05,2]
[342653511,1732026639306,-435.26736128,9.898e-05,2]
[342653513,1732026639315,-500.0,9.898e-05,2]
[342653514,1732026639324,-500.0,9.898e-05,2]
[342653515,1732026639332,-500.0,9.898e-05,2]
[342653516,1732026639341,-500.0,9.898e-05,2]
[342653517,1732026639350,-500.0,9.898e-05,2]
[342653518,1732026639359,-500.0,9.898e-05,2]
[342653519,1732026639367,-500.0,9.898e-05,2]
[342653520,1732026639376,-500.0,9.898e-05,2]
[342653521,1732026639601,-500.0,9.898e-05,2]
[342653522,1732026639611,-500.0,9.898e-05,2]
[342653523,1732026639620,-500.0,9.898e-05,2]
[342653524,1732026639629,-500.0,9.899e-05,2]
[342653525,1732026639639,-500.0,9.899e-05,2]
[342653526,1732026639648,-500.0,9.899e-05,2]
[342653527,1732026639657,-514.69,9.899e-05,2]
[342653528,1732026639667,-500.0,9.899e-05,2]
[342653529,1732026639676,-500.0,9.899e-05,2]
[342653530,1732026639685,-500.0,9.899e-05,2]
[342653531,1732026639695,-243.94,9.899e-05,2]
[342653532,1732026639706,-500.0,9.899e-05,2]
[342653533,1732026639715,-500.0,9.899e-05,2]
[342653534,1732026639725,-500.0,9.899e-05,2]
[342653535,1732026639734,-375.19,9.899e-05,2]
[342653536,1732026639743,-500.0,9.899e-05,2]
[342653537,1732026639752,-220.20837388,9.899e-05,2]
[342653538,1732026639762,-501.85352954,9.899e-05,2]
[342653539,1732026639771,-503.5771856,9.899e-05,2]
[342653540,1732026639781,-511.0968324,9.899e-05,2]
[342653541,1732026639791,-500.37715256,9.899e-05,2]
[342653542,1732026639800,-503.53745897,9.899e-05,2]
[342653543,1732026639810,-500.0,9.899e-05,2]
[342653544,1732026639820,-500.0,9.899e-05,2]
[342653545,1732026639829,-500.0,9.899e-05,2]
[342653546,1732026639839,-500.0,9.899e-05,2]
[342653547,1732026639849,-500.0,9.899e-05,2]
[342653548,1732026639860,-225.21288329,9.899e-05,2]
[342653549,1732026639870,-500.0,9.899e-05,2]
[342653550,1732026639880,-500.54729082,9.899e-05,2]
[342653551,1732026639889,-500.0,9.899e-05,2]
[342653552,1732026639899,-500.0,9.899e-05,2]
[342653553,1732026639909,-500.0,9.899e-05,2]
[342653554,1732026639919,-500.0,9.899e-05,2]
[342653555,1732026639929,-1166.9,9.899e-05,2]
[342653556,1732026639939,-500.0,9.899e-05,2]
[342653557,1732026639953,-500.66425238,9.899e-05,2]
[342653558,1732026639963,-500.0,9.899e-05,2]
[342653559,1732026639973,-537.89490923,9.899e-05,2]
[342653560,1732026639983,-500.0,9.899e-05,2]
[342653561,1732026639993,-500.0,9.899e-05,2]
[342653562,1732026640003,-500.0,9.899e-05,2]
[342653563,1732026640012,-500.0,9.899e-05,2]
[342653564,1732026640026,-500.0,9.899e-05,2]
[342653565,1732026640036,-500.0,9.899e-05,2]
[342653566,1732026640045,-503.28074702,9.899e-05,2]
[342653567,1732026640055,-500.0,9.899e-05,2]
[342653568,1732026640065,-500.0,9.899e-05,2]
[342653569,1732026640075,-500.0,9.899e-05,2]
[342653570,1732026640085,-500.0,9.899e-05,2]
[342653571,1732026640094,-500.53790847,9.899e-05,2]
[342653572,1732026640103,-500.0,9.899e-05,2]
[342653573,1732026640112,-500.0,9.899e-05,2]
[342653574,1732026640121,-500.0,9.899e-05,2]
[342653575,1732026640130,-500.0,9.899e-05,2]
[342653576,1732026640140,-500.0,9.899e-05,2]
[342653577,1732026640149,-500.0,9.899e-05,2]
[342653578,1732026640158,-500.0,9.899e-05,2]
[342653579,1732026640167,-500.0,9.899e-05,2]
[342653580,1732026640177,-487.99713238,9.899e-05,2]
[342653581,1732026640186,-500.0,9.899e-05,2]
[342653582,1732026640196,-172.61267239,9.899e-05,2]
[342653584,1732026640207,-581.74,9.899e-05,2]
[342653586,1732026640217,-331.11,9.899e-05,2]
[342653587,1732026640227,-500.0,9.899e-05,2]
[342653588,1732026640237,-500.0,9.899e-05,2]
[342653589,1732026640247,-500.0,9.899e-05,2]
[342653590,1732026640256,-500.0,9.899e-05,2]
[342653591,1732026640265,-300.0,9.899e-05,2]
[342653592,1732026640274,-255.0,9.899e-05,2]
[342653593,1732026640283,-500.0,9.899e-05,2]
[342653594,1732026640292,-500.0,9.899e-05,2]
[342653595,1732026640302,-500.0,9.899e-05,2]
[342653596,1732026640312,-242.68,9.899e-05,2]
[342653597,1732026640321,-500.0,9.899e-05,2]
[342653598,1732026640331,-154727.9433,9.9e-05,2]
[342653599,1732026640340,-500.0,9.9e-05,2]
[342653600,1732026640350,-20502.8254,9.9e-05,2]
[342653601,1732026640360,-968.82,9.9e-05,2]
[342653602,1732026640371,-1649.58122095,9.9e-05,2]
[342653603,1732026640380,-1896.24,9.909e-05,2]
[342653604,1732026640390,-500.0,9.909e-05,2]
[342653605,1732026640399,-500.0,9.909e-05,2]
[342653606,1732026640409,-316.64,9.909e-05,2]
[342653607,1732026640419,-500.0,9.909e-05,2]
[342653608,1732026640429,-500.0,9.909e-05,2]
[342653609,1732026640439,-500.00000001,9.909e-05,2]
[342653610,1732026640450,-500.0,9.909e-05,2]
[342653611,1732026640459,-500.0,9.909e-05,2]
[342653612,1732026640469,-500.0,9.909e-05,2]
[342653613,1732026640479,-500.0,9.909e-05,2]
[342653614,1732026640488,-41772.61596821,9.91e-05,2]
[342653615,1732026640498,-500.0,9.979e-05,2]
[342653616,1732026640507,-500.0,9.979e-05,2]
[342653617,1732026640516,-500.0,9.979e-05,2]
[342653618,1732026640526,-301751.56062252,9.98e-05,2]
[342653619,1732026640535,-12590.53622079,9.982e-05,2]
[342653620,1732026640545,-500.0,9.989e-05,2]
[342653621,1732026640555,-500.0,9.989e-05,2]
[342653622,1732026640564,-38267.31346716,9.99e-05,2]
[342653623,1732026640574,-6940.10312448,9.99e-05,2]
[342653624,1732026640584,-6940.10312447,9.99e-05,2]
[342653625,1732026640594,-6940.10312447,9.99e-05,2]
[342653627,1732026640603,-6940.10312447,9.99e-05,2]
[342653628,1732026640613,-6940.10312447,9.99e-05,2]
[342653629,1732026640623,-6940.10312447,9.99e-05,2]
[342653630,1732026640633,-6940.10312447,9.99e-05,2]
[342653631,1732026640642,-6940.10312447,9.99e-05,2]
[342653632,1732026640652,-6940.10312447,9.99e-05,2]
[342653633,1732026640661,-293.2242956,9.991e-05,2]
[342653634,1732026640671,-599.77869218,9.991e-05,2]
[342653635,1732026640680,-444.57,9.992e-05,2]
[342653636,1732026640690,-626.78,9.992e-05,2]
[342653637,1732026640702,-409.72,9.992e-05,2]
[342653638,1732026640711,-500.0,9.992e-05,2]
[342653639,1732026640720,-500.0,9.992e-05,2]
[342653640,1732026640729,-388.58,9.992e-05,2]
[342653641,1732026640739,-500.0,9.992e-05,2]
[342653642,1732026640748,-363.854536,9.992e-05,2]
[342653643,1732026640758,-500.0,9.992e-05,2]
[342653644,1732026640767,-185.25455502,9.992e-05,2]
[342653645,1732026640776,-293.2242956,9.993e-05,2]
[342653646,1732026640786,-654023.16948297,9.993e-05,2]
[342653647,1732026640795,-500.0,9.998e-05,2]
[342653648,1732026640804,-500.0,9.998e-05,2]
[342653649,1732026640813,-500.0,9.998e-05,2]
[342653650,1732026640822,-163.71,9.998e-05,2]
[342653651,1732026640831,-500.0,9.998e-05,2]
[342653652,1732026640841,-592.48,9.998e-05,2]
[342653653,1732026640850,-500.0,9.998e-05,2]
[342653654,1732026640859,-2126.616,9.998e-05,2]
[342653655,1732026640868,-174.056,9.998e-05,2]
[342653656,1732026640877,-500.0,9.998e-05,2]
[342653657,1732026640887,-223.76,9.998e-05,2]
[342653658,1732026640896,-500.0,9.998e-05,2]
[342653659,1732026640906,-500.0,9.998e-05,2]
[342653660,1732026640915,-505.76,9.998e-05,2]
[342653661,1732026640924,-527.57,9.998e-05,2]
[342653662,1732026640934,-500.0,9.998e-05,2]
[342653663,1732026640944,-512.63,9.998e-05,2]
[342653664,1732026640957,-206.56550534,9.998e-05,2]
[342653665,1732026640966,-150.0,9.998e-05,2]
[342653666,1732026640976,-500.0,9.998e-05,2]
[342653667,1732026640985,-191.81,9.998e-05,2]
[342653668,1732026640995,-500.0,9.998e-05,2]
[342653669,1732026641004,-500.0,9.998e-05,2]
[342653670,1732026641014,-500.0,9.998e-05,2]
[342653671,1732026641023,-500.0,9.998e-05,2]
[342653672,1732026641033,-500.0,9.998e-05,2]
[342653673,1732026641043,-505.37017149,9.998e-05,2]
[342653674,1732026641052,-1166.9,9.998e-05,2]
[342653675,1732026641061,-500.0,9.998e-05,2]
[342653676,1732026641070,-500.0,9.998e-05,2]
[342653677,1732026641079,-506.01327779,9.998e-05,2]
[342653678,1732026641088,-500.0,9.998e-05,2]
[342653679,1732026641097,-500.0,9.998e-05,2]
[342653680,1732026641107,-500.0,9.998e-05,2]
[342653681,1732026641116,-500.0,9.998e-05,2]
[342653682,1732026641125,-500.0,9.998e-05,2]
[342653683,1732026641135,-1000.0,9.998e-05,2]
[342653684,1732026641144,-500.0,9.998e-05,2]